Workbook

Sheet ORÇAMENTO
A1: <---- NUMERAR SERVIÇOS PARA CPU | C1: Ministério do Desenvolvimento Regional
C2: Companhia de Desenvolvimento dos Vales do São Francisco e do Parnaíba
C3: 1ª Superintendência Regional
B5: OBRA: | C5: PAVIMENTAÇÃO ASFÁLTICA EM PMF - COMUNIDADE LAGOA DOURADA (TAIOBEIRAS-MG)
B6: DATA: | C6: SETEMBRO DE 2022 | G6: BDI Serviços: | I6: ='BDI SERV'!D31/100 -> 0.2115
B7: PRAZO DE EXECUÇÃO: 90 DIAS | G7: BDI Serviços: | I7: ='BDI FORN'!D31/100 -> 0.15
B8: ITEM | C8: DISCRIMINAÇÃO | D8: REFER. | E8: UNID. | F8: QUANT. | G8: P. UNITÁRIO | H8: P.UNIT.C/ BDI | I8: P. TOTAL | J8: =I37 -> 294975.77 | K8: =500000*0.955 -> 477500
A9: A | B9: 1 | C9: SERVIÇOS PRELIMINARES | I9: =SUM(I10:I14) -> 32228.73 | J9: =I9/I37 -> 0.1092589062
A10: 1 | B10: 1.1 | C10: MOBILIZAÇÃO E DESMOBILIZAÇÃO | D10: CPU.1 | E10: GL | F10: 1 | G10: =VLOOKUP(A10,CPU!$A$1:$N$4636,9) -> 4675.86 | H10: =VLOOKUP(A10,CPU!$A$1:$N$4636,10) -> 5664.80439 | I10: =ROUND(F10*H10,2) -> 5664.8 | J10: =I10/$I$37 -> 0.01920428922
A11: 2 | B11: 1.2 | C11: ADMINISTRAÇÃO LOCAL | D11: CPU.2 | E11: GL | F11: 1 | G11: =VLOOKUP(A11,CPU!$A$1:$N$4636,9) -> 17653.58536 | H11: =VLOOKUP(A11,CPU!$A$1:$N$4636,10) -> 21387.31866 | I11: =ROUND(F11*H11,2) -> 21387.32 | J11: =I11/$I$37 -> 0.0725053451
A12: 3 | B12: 1.3 | C12: CANTEIRO DE OBRAS | D12: CPU.3 | E12: GL | F12: 1 | G12: =VLOOKUP(A12,CPU!$A$1:$N$4636,9) -> 2758.5 | H12: =VLOOKUP(A12,CPU!$A$1:$N$4636,10) -> 3341.92275 | I12: =ROUND(F12*H12,2) -> 3341.92
A13: 4 | B13: 1.4 | C13: PLACA DE OBRA EM CHAPA DE AÇO GALVANIZADO | D13: 74209/001 | E13: M2 | F13: 2 | G13: =VLOOKUP(A13,CPU!$A$1:$N$4636,9) -> 594 | H13: =VLOOKUP(A13,CPU!$A$1:$N$4636,10) -> 719.631 | I13: =ROUND(F13*H13,2) -> 1439.26
A14: 5 | B14: 1.5 | C14: LOCAÇÃO DE PAVIMENTAÇÃO | D14: 99064 | E14: M | F14: 510 | G14: =VLOOKUP(A14,CPU!$A$1:$N$4636,9) -> 0.64 | H14: =VLOOKUP(A14,CPU!$A$1:$N$4636,10) -> 0.77536 | I14: =ROUND(F14*H14,2) -> 395.43
A15: B | B15: 2 | C15: PAVIMENTAÇÃO | I15: =SUM(I16:I23) -> 67550.3 | J15: =I15/I37 -> 0.2290028771
A16: 6 | B16: 2.1 | C16: ESCAVAÇÃO HORIZONTAL EM SOLO DE 1A CATEGORIA | D16: 101116 | E16: M3 | F16: 1190 | G16: =VLOOKUP(A16,CPU!$A$1:$N$4636,9) -> 2.14 | H16: =VLOOKUP(A16,CPU!$A$1:$N$4636,10) -> 2.59261 | I16: =ROUND(F16*H16,2) -> 3085.21
A17: 7 | B17: 2.2 | C17: CARGA, MANOBRA E DESCARGA DE SOLOS E MATERIAIS GRANULARES EM CAMINHÃO BASCULANTE - DESCARGA LIVRE | D17: 100976 | E17: M3 | F17: 1190 | G17: =VLOOKUP(A17,CPU!$A$1:$N$4636,9) -> 4.39 | H17: =VLOOKUP(A17,CPU!$A$1:$N$4636,10) -> 5.318485 | I17: =ROUND(F17*H17,2) -> 6329
A18: 8 | B18: 2.3 | C18: REGULARIZAÇÃO E COMPACTAÇÃO DE SUBLEITO | D18: 100576 | E18: M2 | F18: 2970 | G18: =VLOOKUP(A18,CPU!$A$1:$N$4636,9) -> 2.22 | H18: =VLOOKUP(A18,CPU!$A$1:$N$4636,10) -> 2.68953 | I18: 7987.9
B19: 2.4 | C19: CASCALHO DE CAVA | D19: - | E19: M3 | F19: 595 | G19: A CARGO DA PREFEITURA | I19: 0
A20: 9 | B20: 2.5 | C20: EXECUÇÃO E COMPACTAÇÃO DE BASE E OU SUB BASE PARA PAVIMENTAÇÃO EM CASCALHO - EXCLUSIVE SOLO, ESCAVAÇÃO, CARGA E TRANSPORTE. | D20: 96388 | E20: M3 | F20: 595 | G20: =VLOOKUP(A20,CPU!$A$1:$N$4636,9) -> 10.57 | H20: =VLOOKUP(A20,CPU!$A$1:$N$4636,10) -> 12.805555 | I20: 7619.31
A21: 10 | B21: 2.6 | C21: IMPRIMAÇÃO COM ASFALTO DILUIDO CM-30 | D21: 96401 | E21: M2 | F21: 2970 | G21: =VLOOKUP(A21,CPU!$A$1:$N$4636,9) -> 1.09 | H21: =VLOOKUP(A21,CPU!$A$1:$N$4636,10) -> 1.320535 | I21: 3921.99
A22: 11 | B22: 2.7 | C22: PINTURA DE LIGAÇÃO COM EMULSÃO ASFÁLTICA RR-2C | D22: 96402 | E22: M2 | F22: 2510 | G22: =VLOOKUP(A22,CPU!$A$1:$N$4636,9) -> 0.87 | H22: =VLOOKUP(A22,CPU!$A$1:$N$4636,10) -> 1.054005 | I22: 2645.55
A23: 12 | B23: 2.8 | C23: EXECUÇÃO DE PAVIMENTO COM APLICAÇÃO DE PRÉ-MISTURADO A FRIO, CAMADA DE ROLAMENTO - EXCLUSIVE TRANSPORTE | D23: 100624 | E23: M3 | F23: 76 | G23: =VLOOKUP(A23,CPU!$A$1:$N$4636,9) -> 390.57 | H23: =VLOOKUP(A23,CPU!$A$1:$N$4636,10) -> 473.175555 | I23: 35961.34
A24: C | B24: 3 | C24: TRANSPORTE DE MATERIAIS | I24: =SUM(I25:I27) -> 19711.11 | J24: =I24/I37 -> 0.06682281057
A25: 13 | B25: 3.1 | C25: TRANSPORTE COM CAMINHÃO BASCULANTE, EM VIA URBANA EM REVESTIMENTO PRIMÁRIO | D25: 95426 | E25: M3XKM | F25: 2800 | G25: =VLOOKUP(A25,CPU!$A$1:$N$4636,9,0) -> 1.09 | H25: =VLOOKUP(A25,CPU!$A$1:$N$4636,10) -> 1.320535 | I25: =ROUND(F25*H25,2) -> 3697.5
A26: 22 | B26: 3.2 | C26: TRANSPORTE COM CAMINHÃO BASCULANTE, EM VIA URBANA EM LEITO NATURAL | D26: 95425 | E26: M3XKM | F26: 6550 | G26: =VLOOKUP(A26,CPU!$A$1:$N$4636,9,0) -> 1.96 | H26: =VLOOKUP(A26,CPU!$A$1:$N$4636,10,0) -> 2.37454 | I26: =ROUND(F26*H26,2) -> 15553.24
A27: 20 | B27: 3.3 | C27: TRANSPORTE COM CAMINHÃO BASCULANTE, EM VIA URBANA PAVIMENTADA | D27: 95427 | E27: M3XKM | F27: 500.001096 | G27: =VLOOKUP(A27,CPU!$A$1:$N$4636,9,0) -> 0.76 | H27: =VLOOKUP(A27,CPU!$A$1:$N$4636,10,0) -> 0.92074 | I27: =ROUND(F27*H27,2) -> 460.37
A28: E | B28: 4 | C28: OBRAS COMPLEMENTARES | I28: =SUM(I29:I29) -> 68706.59 | J28: =I28/I37 -> 0.2329228262
A29: 15 | B29: 4.1 | C29: GUIA (MEIO-FIO) E SARJETA CONJUGADOS DE CONCRETO, MOLDADA IN LOCO EM TRECHO RETO COM EXTRUSORA, 45 CM BASE (15 CM BASE DA GUIA + 30 CM BASE DA SARJETA) X 22 CM ALTURA | D29: 94267 | E29: M | F29: 1020 | G29: =VLOOKUP(A29,CPU!$A$1:$N$4636,9,0) -> 55.6 | H29: =VLOOKUP(A29,CPU!$A$1:$N$4636,10,0) -> 67.3594 | I29: =ROUND(F29*H29,2) -> 68706.59
A30: F | B30: 5 | C30: TRANSPORTE DE MATERIAL ASFÁLTICO (BDI DIFERENCIADO) | I30: =SUM(I31:I32) -> 10098.15 | J30: =I30/I37 -> 0.03423382876
A31: 14 | B31: 5.1 | C31: TRANSPORTE COM CAMINHÃO TANQUE DE TRANSPORTE DE MATERIAL ASFÁLTICO DE 30000 L, EM VIA URBANA PAVIMENTADA | D31: 102331 | E31: TXKM | F31: 13299.9984 | G31: =VLOOKUP(A31,CPU!$A$1:$N$4636,9,0) -> 0.57 | H31: =VLOOKUP(A31,CPU!$A$1:$N$4636,10,0) -> 0.6555 | I31: =ROUND(F31*H31,2) -> 8718.15
A32: 21 | B32: 5.2 | C32: TRANSPORTE COM CAMINHÃO BASCULANTE, EM VIA URBANA PAVIMENTADA | D32: 95430 | E32: TXKM | F32: 2499.996 | G32: =VLOOKUP(A32,CPU!$A$1:$N$4636,9,0) -> 0.48 | H32: =VLOOKUP(A32,CPU!$A$1:$N$4636,10,0) -> 0.552 | I32: =ROUND(F32*H32,2) -> 1380
A33: G | B33: 6 | C33: FORNECIMENTOS - MATERIAL ASFÁLTICO (BDI DIFERENCIADO) | I33: =SUM(I34:I36) -> 96680.89 | J33: =I33/I37 -> 0.3277587512
A34: 17 | B34: 6.1 | C34: AQUISIÇÃO DE ASFALTO DILUIDO DE PETROLEO CM-30 - EXCLUSIVE TRANSPORTE | D34: CPU.4 | E34: T | F34: 3.564 | G34: =VLOOKUP(A34,CPU!$A$1:$N$4636,9,0) -> 6754.08 | H34: =VLOOKUP(A34,CPU!$A$1:$N$4636,10,0) -> 7767.192 | I34: =ROUND(F34*H34,2) -> 27682.27
A35: 18 | B35: 6.2 | C35: AQUISIÇÃO DE EMULSAO ASFALTICA CATIONICA RR-2C - EXCLUSIVE TRANSPORTE | D35: CPU.5 | E35: T | F35: 1.1295 | G35: =VLOOKUP(A35,CPU!$A$1:$N$4636,9,0) -> 4222.34 | H35: =VLOOKUP(A35,CPU!$A$1:$N$4636,10,0) -> 4855.691 | I35: =ROUND(F35*H35,2) -> 5484.5
A36: 19 | B36: 6.3 | C36: AQUISIÇÃO DE EMULSAO ASFALTICA CATIONICA RL-1C - EXCLUSIVE TRANSPORTE | D36: CPU.6 | E36: T | F36: 14.3108 | G36: =VLOOKUP(A36,CPU!$A$1:$N$4636,9,0) -> 3859.3 | H36: =VLOOKUP(A36,CPU!$A$1:$N$4636,10,0) -> 4438.195 | I36: =ROUND(F36*H36,2) -> 63514.12
B37: TOTAL GERAL DA OBRA COM BDI | I37: =SUM(I9,I15,I24,I28,I30,I33) -> 294975.77 | J37: =I37/F21 -> 99.31844108 | K37: / m²

Sheet CPU
A1: 1 | B1: CODEVASF | E1: COMPOSIÇÃO DE PREÇO UNITÁRIO | I1: =H10 -> 4675.86 | J1: =H12 -> 5664.80439 | K1: BDI CALCULADO: | M1: =ORÇAMENTO!I6 -> 0.2115
B2: OBRA: | C2: =ORÇAMENTO!C5 -> PAVIMENTAÇÃO ASFÁLTICA EM PMF - COMUNIDADE LAGOA DOURADA (TAIOBEIRAS-MG) | G2: DATA: | H2: =ORÇAMENTO!C6 -> SETEMBRO DE 2022 | K2: BDI DIFERENCIADO: | M2: ='BDI FORN'!D31/100 -> 0.15
B3: SERVIÇO: | C3: =VLOOKUP(A1,ORÇAMENTO!A10:I29,3) -> MOBILIZAÇÃO E DESMOBILIZAÇÃO | E3: Referência: | F3: =VLOOKUP(A1,ORÇAMENTO!A10:I29,4) -> CPU.1 | G3: UNIDADE: | H3: =VLOOKUP(A1,ORÇAMENTO!A10:I29,5) -> GL
B5: TIPO ITEM | C5: CODIGO ITEM | D5: DESCRIÇÃO ITEM | E5: UNIDADE ITEM | F5: COEFICIENTE | G5: PRECO UNITARIO | H5: CUSTO TOTAL
B6: COMPOSICAO | C6: 89876 | D6: CAMINHÃO BASCULANTE 14 M3, COM CAVALO MECÂNICO DE CAPACIDADE MÁXIMA DE TRAÇÃO COMBINADO DE 36000 KG, POTÊNCIA 286 CV, INCLUSIVE SEMIREBOQUE COM CAÇAMBA METÁLICA | E6: CHP DIURNO. | F6: 12 | G6: 337.91 | H6: =ROUNDDOWN(F6*G6,2) -> 4054.92
B7: COMPOSICAO | C7: 89877 | D7: CAMINHÃO BASCULANTE 14 M3, COM CAVALO MECÂNICO DE CAPACIDADE MÁXIMA DE TRAÇÃO COMBINADO DE 36000 KG, POTÊNCIA 286 CV, INCLUSIVE SEMIREBOQUE COM CAÇAMBA METÁLICA | E7: CHI DIURNO. | F7: 6 | G7: 67.45 | H7: =ROUNDDOWN(F7*G7,2) -> 404.7
B8: COMPOSIÇÃO | C8: 88316 | D8: SERVENTE COM ENCARGOS COMPLEMENTARES | E8: H | F8: 12 | G8: 18.02 | H8: 216.24
B9: PRODUÇÃO DA EQUIPE | E9: 1 | F9: CUSTO | H9: =SUM(H6:H8) -> 4675.86
B10: TOTAL | H10: =H9/E9 -> 4675.86
B11: BDI % | H11: =1+$M$1 -> 1.2115
B12: TOTAL DO SERVIÇO - R$ | H12: =H10*H11 -> 5664.80439
A14: =A1+1 -> 2 | B14: CODEVASF | E14: COMPOSIÇÃO DE PREÇO UNITÁRIO | I14: =H27 -> 17653.58536 | J14: =H29 -> 21387.31866
B15: OBRA: | C15: =$C$2 -> PAVIMENTAÇÃO ASFÁLTICA EM PMF - COMUNIDADE LAGOA DOURADA (TAIOBEIRAS-MG) | G15: DATA: | H15: =$H$2 -> SETEMBRO DE 2022
B16: SERVIÇO: | C16: =VLOOKUP(A14,ORÇAMENTO!$A$10:$I$29,3) -> ADMINISTRAÇÃO LOCAL | E16: SINAPI | F16: CPU | G16: UNIDADE: | H16: =VLOOKUP(A14,ORÇAMENTO!$A$10:$I$29,5) -> GL
B18: TIPO ITEM | C18: CODIGO ITEM | D18: DESCRIÇÃO ITEM | E18: UNIDADE ITEM | F18: COEFICIENTE | G18: PRECO UNITARIO | H18: CUSTO TOTAL
B19: INSUMO | C19: 14250 | D19: ENERGIA ELÉTRICA | E19: kwh | F19: 60 | G19: 0.75 | H19: =ROUNDDOWN(F19*G19,2) -> 45
B20: INSUMO | C20: 44480 | D20: TARIFA "A" ENTRE 0 E 20 M³ - FORNECIMENTO D'ÁGUA | E20: m³ | F20: 6 | G20: 14.19 | H20: 85.14
B21: COTAÇÃO | C21: MERC. | D21: TELEFONE (PLANO CONTROLE) | E21: UNID | F21: 2 | G21: 60 | H21: 120
B22: COMPOSICAO | C22: 90777 | D22: Engenheiro Civil Júnior com encargos complementares | E22: H | F22: 20 | G22: 103.51 | H22: 2070.2
B23: COMPOSICAO | C23: 90776 | D23: Encarregado Geral com encargos complementares | E23: H | F23: 60 | G23: 39.8 | H23: 2388
B24: COMPOSICAO | C24: 88321 | D24: Tecnico de Laboratório com encargos complementares | E24: H | F24: 20 | G24: 38.64 | H24: 772.8
B25: COMPOSICAO | C25: 90772 | D25: Auxiliar de escritório com encargos complementares | E25: H | F25: 20 | G25: 20.14 | H25: 402.8
B26: PRODUÇÃO DA EQUIPE | E26: 0.3333 | F26: CUSTO | H26: =SUM(H19:H25) -> 5883.94
B27: TOTAL | H27: =H26/E26 -> 17653.58536
B28: BDI % | H28: =1+$M$1 -> 1.2115
B29: TOTAL DO SERVIÇO - R$ | H29: =H27*H28 -> 21387.31866
A31: =A14+1 -> 3 | B31: CODEVASF | E31: COMPOSIÇÃO DE PREÇO UNITÁRIO | I31: =H38 -> 2758.5 | J31: =H40 -> 3341.92275
B32: OBRA: | C32: =$C$2 -> PAVIMENTAÇÃO ASFÁLTICA EM PMF - COMUNIDADE LAGOA DOURADA (TAIOBEIRAS-MG) | G32: DATA: | H32: =$H$2 -> SETEMBRO DE 2022
B33: SERVIÇO: | C33: =VLOOKUP(A31,ORÇAMENTO!$A$10:$I$29,3) -> CANTEIRO DE OBRAS | E33: SINAPI | F33: =VLOOKUP(A31,ORÇAMENTO!$A$10:$I$29,4) -> CPU.3 | G33: UNIDADE: | H33: =VLOOKUP(A31,ORÇAMENTO!$A$10:$I$29,5) -> GL
B35: TIPO ITEM | C35: CODIGO ITEM | D35: DESCRIÇÃO ITEM | E35: UNIDADE ITEM | F35: COEFICIENTE | G35: PRECO UNITARIO | H35: CUSTO TOTAL
B36: INSUMO | C36: 10775 | D36: ALUGUEL DE IMÓVEL OU CONTEINER QUE ATENDA AOS REQUISITOS MÍNIMOS PARA INSTALAÇÃO DO CANTEIRO DE OBRAS | E36: MÊS | F36: 3 | G36: 919.5 | H36: =ROUNDDOWN(F36*G36,2) -> 2758.5
B37: PRODUÇÃO DA EQUIPE | E37: 1 | F37: CUSTO | H37: =SUM(H36:H36) -> 2758.5
B38: TOTAL | H38: =H37/E37 -> 2758.5
B39: BDI % | H39: =1+$M$1 -> 1.2115
B40: TOTAL DO SERVIÇO - R$ | H40: =H38*H39 -> 3341.92275
A42: =A31+1 -> 4 | B42: CODEVASF | E42: COMPOSIÇÃO DE PREÇO UNITÁRIO | I42: =H55 -> 594 | J42: =H57 -> 719.631
B43: OBRA: | C43: =$C$2 -> PAVIMENTAÇÃO ASFÁLTICA EM PMF - COMUNIDADE LAGOA DOURADA (TAIOBEIRAS-MG) | G43: DATA: | H43: =$H$2 -> SETEMBRO DE 2022
B44: SERVIÇO: | C44: =VLOOKUP(A42,ORÇAMENTO!$A$10:$I$29,3) -> PLACA DE OBRA EM CHAPA DE AÇO GALVANIZADO | E44: SINAPI | F44: =VLOOKUP(A42,ORÇAMENTO!$A$10:$I$29,4) -> 74209/001 | G44: UNIDADE: | H44: =VLOOKUP(A42,ORÇAMENTO!$A$10:$I$29,5) -> M2
B46: TIPO ITEM | C46: CODIGO ITEM | D46: DESCRIÇÃO ITEM | E46: UNIDADE ITEM | F46: COEFICIENTE | G46: PRECO UNITARIO | H46: CUSTO TOTAL
B47: INSUMO | C47: 4417 | D47: SARRAFO DE MADEIRA NAO APARELHADA *2,5 X 7* CM, MACARANDUBA, ANGELIM OU EQUIVALENTE DA REGIAO | E47: M | F47: 1,0000000 | G47: 12.45 | H47: =ROUNDDOWN(F47*G47,2) -> 12.45
B48: INSUMO | C48: 4491 | D48: PONTALETE DE MADEIRA NAO APARELHADA *7,5 X 7,5* CM (3 X 3 ") PINUS, MISTA OU EQUIVALENTE DA REGIAO | E48: M | F48: 4,0000000 | G48: 8.57 | H48: 34.28
B49: INSUMO | C49: 4813 | D49: PLACA DE OBRA (PARA CONSTRUCAO CIVIL) EM CHAPA GALVANIZADA *N. 22*, ADESIVADA, DE *2,0 X 1,125* M | E49: M2 | F49: 1,0000000 | G49: 480 | H49: 480
B50: INSUMO | C50: 5075 | D50: PREGO DE ACO POLIDO COM CABECA 18 X 30 (2 3/4 X 10) | E50: KG | F50: 0,1100000 | G50: 23.4 | H50: 2.57
B51: COMPOSICAO | C51: 88262 | D51: CARPINTEIRO DE FORMAS COM ENCARGOS COMPLEMENTARES | E51: H | F51: 1,0000000 | G51: 24.86 | H51: 24.86
B52: COMPOSICAO | C52: 88316 | D52: SERVENTE COM ENCARGOS COMPLEMENTARES | E52: H | F52: 2,0000000 | G52: 18.02 | H52: 36.04
B53: COMPOSICAO | C53: 94962 | D53: CONCRETO MAGRO PARA LASTRO, TRAÇO 1:4,5:4,5 (CIMENTO/ AREIA MÉDIA/ BRITA 1) - PREPARO MECÂNICO COM BETONEIRA 400 L | E53: M3 | F53: 0,0100000 | G53: 380.33 | H53: 3.8
B54: PRODUÇÃO DA EQUIPE | E54: 1 | F54: CUSTO | H54: =SUM(H47:H53) -> 594
B55: TOTAL | H55: =H54/E54 -> 594
B56: BDI % | H56: =1+$M$1 -> 1.2115
B57: TOTAL DO SERVIÇO - R$ | H57: =H55*H56 -> 719.631
A59: =A42+1 -> 5 | B59: CODEVASF | E59: COMPOSIÇÃO DE PREÇO UNITÁRIO | I59: =H67 -> 0.64 | J59: =H69 -> 0.77536
B60: OBRA: | C60: =$C$2 -> PAVIMENTAÇÃO ASFÁLTICA EM PMF - COMUNIDADE LAGOA DOURADA (TAIOBEIRAS-MG) | G60: DATA: | H60: =$H$2 -> SETEMBRO DE 2022
B61: SERVIÇO: | C61: =VLOOKUP(A59,ORÇAMENTO!$A$10:$I$29,3) -> LOCAÇÃO DE PAVIMENTAÇÃO | E61: SINAPI | F61: =VLOOKUP(A59,ORÇAMENTO!$A$10:$I$29,4) -> 99064 | G61: UNIDADE: | H61: =VLOOKUP(A59,ORÇAMENTO!$A$10:$I$29,5) -> M
B63: TIPO ITEM | C63: CODIGO ITEM | D63: DESCRIÇÃO ITEM | E63: UNIDADE ITEM | F63: COEFICIENTE | G63: PRECO UNITARIO | H63: CUSTO TOTAL
B64: COMPOSICAO | C64: 99058 | D64: LOCAÇÃO DE PONTO PARA REFERÊNCIA TOPOGRÁFICA | E64: UN | F64: 0.05 | G64: 12.96 | H64: =ROUNDDOWN(F64*G64,2) -> 0.64
B66: PRODUÇÃO DA EQUIPE | E66: 1 | F66: CUSTO | H66: =SUM(H64:H65) -> 0.64
B67: TOTAL | H67: =H66/E66 -> 0.64
B68: BDI % | H68: =1+$M$1 -> 1.2115
B69: TOTAL DO SERVIÇO - R$ | H69: =H67*H68 -> 0.77536
A71: =A59+1 -> 6 | B71: CODEVASF | E71: COMPOSIÇÃO DE PREÇO UNITÁRIO | I71: =H80 -> 2.14 | J71: =H82 -> 2.59261
B72: OBRA: | C72: =$C$2 -> PAVIMENTAÇÃO ASFÁLTICA EM PMF - COMUNIDADE LAGOA DOURADA (TAIOBEIRAS-MG) | G72: DATA: | H72: =$H$2 -> SETEMBRO DE 2022 | J72: =H83 -> 0
B73: SERVIÇO: | C73: =VLOOKUP(A71,ORÇAMENTO!$A$10:$I$29,3) -> ESCAVAÇÃO HORIZONTAL EM SOLO DE 1A CATEGORIA | E73: SINAPI | F73: =VLOOKUP(A71,ORÇAMENTO!$A$10:$I$29,4) -> 101116 | G73: UNIDADE: | H73: =VLOOKUP(A71,ORÇAMENTO!$A$10:$I$29,5) -> M3
B75: TIPO ITEM | C75: CODIGO ITEM | D75: DESCRIÇÃO ITEM | E75: UNIDADE ITEM | F75: COEFICIENTE | G75: PRECO UNITARIO | H75: CUSTO TOTAL
B76: COMPOSICAO | C76: 5847 | D76: TRATOR DE ESTEIRAS, POTÊNCIA 170 HP, PESO OPERACIONAL 19 T, CAÇAMBA 5,2 M3 - CHP DIURNO. AF_06/2014 | E76: CHP | F76: 0,0048000 | G76: 274,81 | H76: =ROUNDDOWN(F76*G76,2) -> 1.31
B77: COMPOSICAO | C77: 5849 | D77: TRATOR DE ESTEIRAS, POTÊNCIA 170 HP, PESO OPERACIONAL 19 T, CAÇAMBA 5,2 M3 - CHI DIURNO. AF_06/2014 | E77: CHI | F77: 0,0082000 | G77: 74,36 | H77: 0.6
B78: COMPOSICAO | C78: 88316 | D78: SERVENTE COM ENCARGOS COMPLEMENTARES | E78: H | F78: 0,0131000 | G78: 18,02 | H78: 0.23
B79: PRODUÇÃO DA EQUIPE | E79: 1 | F79: CUSTO | H79: =SUM(H76:H78) -> 2.14
B80: TOTAL | H80: =H79/E79 -> 2.14
B81: BDI % | H81: =1+$M$1 -> 1.2115
B82: TOTAL DO SERVIÇO - R$ | H82: =H80*H81 -> 2.59261
A84: 7 | B84: CODEVASF | E84: COMPOSIÇÃO DE PREÇO UNITÁRIO | I84: =H94 -> 4.39 | J84: =H96 -> 5.318485
B85: OBRA: | C85: =$C$2 -> PAVIMENTAÇÃO ASFÁLTICA EM PMF - COMUNIDADE LAGOA DOURADA (TAIOBEIRAS-MG) | G85: DATA: | H85: =$H$2 -> SETEMBRO DE 2022
B86: SERVIÇO: | C86: =VLOOKUP(A84,ORÇAMENTO!$A$10:$I$29,3) -> CARGA, MANOBRA E DESCARGA DE SOLOS E MATERIAIS GRANULARES EM CAMINHÃO BASCULANTE - DESCARGA LIVRE | E86: SINAPI | F86: =VLOOKUP(A84,ORÇAMENTO!$A$10:$I$29,4) -> 100976 | G86: UNIDADE: | H86: =VLOOKUP(A84,ORÇAMENTO!$A$10:$I$29,5) -> M3
B88: TIPO ITEM | C88: CODIGO ITEM | D88: DESCRIÇÃO ITEM | E88: UNIDADE ITEM | F88: COEFICIENTE | G88: PRECO UNITARIO | H88: CUSTO TOTAL
B89: COMPOSICAO | C89: 5940 | D89: PÁ CARREGADEIRA SOBRE RODAS, POTÊNCIA LÍQUIDA 128 HP, CAPACIDADE DA CAÇAMBA 1,7 A 2,8 M3, PESO OPERACIONAL 11632 KG - CHP DIURNO. AF_06/2014 | E89: CHP | F89: 0.0043 | G89: 211,10 | H89: =ROUNDDOWN(F89*G89,2) -> 0.9
B90: COMPOSICAO | C90: 5942 | D90: PÁ CARREGADEIRA SOBRE RODAS, POTÊNCIA LÍQUIDA 128 HP, CAPACIDADE DA CAÇAMBA 1,7 A 2,8 M3, PESO OPERACIONAL 11632 KG - CHI DIURNO. AF_06/2014 | E90: CHI | F90: 0.004 | G90: 77,00 | H90: 0.3
B91: COMPOSICAO | C91: 89883 | D91: CAMINHÃO BASCULANTE 18 M3, COM CAVALO MECÂNICO DE CAPACIDADE MÁXIMA DE TRAÇÃO COMBINADO DE 45000 KG, POTÊNCIA 330 CV, INCLUSIVE SEMIREBOQUE COM CAÇAMBA METÁLICA - CHP DIURNO. AF_12/2014 | E91: CHP | F91: 0.007515 | G91: 378,01 | H91: 2.84
B92: COMPOSICAO | C92: 89884 | D92: CAMINHÃO BASCULANTE 18 M3, COM CAVALO MECÂNICO DE CAPACIDADE MÁXIMA DE TRAÇÃO COMBINADO DE 45000 KG, POTÊNCIA 330 CV, INCLUSIVE SEMIREBOQUE COM CAÇAMBA METÁLICA - CHI DIURNO. AF_12/2014 | E92: CHI | F92: 0.005 | G92: 70,93 | H92: 0.35
B93: PRODUÇÃO DA EQUIPE | E93: 1 | F93: CUSTO | H93: =SUM(H89:H92) -> 4.39
B94: TOTAL | H94: =H93/E93 -> 4.39
B95: BDI % | H95: =1+$M$1 -> 1.2115
B96: TOTAL DO SERVIÇO - R$ | H96: =H94*H95 -> 5.318485
A98: 8 | B98: CODEVASF | E98: COMPOSIÇÃO DE PREÇO UNITÁRIO | I98: =H112 -> 2.22 | J98: =H114 -> 2.68953
B99: OBRA: | C99: =$C$2 -> PAVIMENTAÇÃO ASFÁLTICA EM PMF - COMUNIDADE LAGOA DOURADA (TAIOBEIRAS-MG) | G99: DATA: | H99: =$H$2 -> SETEMBRO DE 2022
B100: SERVIÇO: | C100: =VLOOKUP(A98,ORÇAMENTO!$A$10:$I$29,3) -> REGULARIZAÇÃO E COMPACTAÇÃO DE SUBLEITO | E100: SINAPI | F100: =VLOOKUP(A98,ORÇAMENTO!$A$10:$I$29,4) -> 100576 | G100: UNIDADE: | H100: =VLOOKUP(A98,ORÇAMENTO!$A$10:$I$29,5) -> M2
B102: TIPO ITEM | C102: CODIGO ITEM | D102: DESCRIÇÃO ITEM | E102: UNIDADE ITEM | F102: COEFICIENTE | G102: PRECO UNITARIO | H102: CUSTO TOTAL
B103: COMPOSICAO | C103: 5901 | D103: CAMINHÃO PIPA 10.000 L TRUCADO, PESO BRUTO TOTAL 23.000 KG, CARGA ÚTIL MÁXIMA 15.935 KG, DISTÂNCIA ENTRE EIXOS 4,8 M, POTÊNCIA 230 CV, INCLUSIVE TANQUE DE AÇO PARA TRANSPORTE DE ÁGUA - CHP DIURNO. AF_06/2014 | E103: CHP | F103: 0,0010000 | G103: 326,66 | H103: =ROUNDDOWN(F103*G103,2) -> 0.32
B104: COMPOSICAO | C104: 5903 | D104: CAMINHÃO PIPA 10.000 L TRUCADO, PESO BRUTO TOTAL 23.000 KG, CARGA ÚTIL MÁXIMA 15.935 KG, DISTÂNCIA ENTRE EIXOS 4,8 M, POTÊNCIA 230 CV, INCLUSIVE TANQUE DE AÇO PARA TRANSPORTE DE ÁGUA - CHI DIURNO. AF_06/2014 | E104: CHI | F104: 0,0070000 | G104: 54,39 | H104: 0.38
B105: COMPOSICAO | C105: 5932 | D105: MOTONIVELADORA POTÊNCIA BÁSICA LÍQUIDA (PRIMEIRA MARCHA) 125 HP, PESO BRUTO 13032 KG, LARGURA DA LÂMINA DE 3,7 M - CHP DIURNO. AF_06/2014 | E105: CHP | F105: 0,0001000 | G105: 256,86 | H105: 0.02
B106: COMPOSICAO | C106: 5934 | D106: MOTONIVELADORA POTÊNCIA BÁSICA LÍQUIDA (PRIMEIRA MARCHA) 125 HP, PESO BRUTO 13032 KG, LARGURA DA LÂMINA DE 3,7 M - CHI DIURNO. AF_06/2014 | E106: CHI | F106: 0,0080000 | G106: 83,44 | H106: 0.66
B107: COMPOSICAO | C107: 73436 | D107: ROLO COMPACTADOR VIBRATÓRIO PÉ DE CARNEIRO PARA SOLOS, POTÊNCIA 80 HP, PESO OPERACIONAL SEM/COM LASTRO 7,4 / 8,8 T, LARGURA DE TRABALHO 1,68 M - CHP DIURNO. AF_02/2016 | E107: CHP | F107: 0,0020000 | G107: 196,72 | H107: 0.39
B108: COMPOSICAO | C108: 88316 | D108: SERVENTE COM ENCARGOS COMPLEMENTARES | E108: H | F108: 0,0080000 | G108: 18,02 | H108: 0.14
B109: COMPOSICAO | C109: 93244 | D109: ROLO COMPACTADOR VIBRATÓRIO PÉ DE CARNEIRO PARA SOLOS, POTÊNCIA 80 HP, PESO OPERACIONAL SEM/COM LASTRO 7,4 / 8,8 T, LARGURA DE TRABALHO 1,68 M - CHI DIURNO. AF_02/2016 | E109: CHI | F109: 0,0060000 | G109: 52,17 | H109: 0.31
H110: 0
B111: PRODUÇÃO DA EQUIPE | E111: 1 | F111: CUSTO | H111: =SUM(H103:H110) -> 2.22
B112: TOTAL | H112: =H111/E111 -> 2.22
B113: BDI % | H113: =1+$M$1 -> 1.2115
B114: TOTAL DO SERVIÇO - R$ | H114: =H112*H113 -> 2.68953
A116: 9 | B116: CODEVASF | E116: COMPOSIÇÃO DE PREÇO UNITÁRIO | I116: =H131 -> 10.57 | J116: =H133 -> 12.805555
B117: OBRA: | C117: =$C$2 -> PAVIMENTAÇÃO ASFÁLTICA EM PMF - COMUNIDADE LAGOA DOURADA (TAIOBEIRAS-MG) | G117: DATA: | H117: =$H$2 -> SETEMBRO DE 2022
B118: SERVIÇO: | C118: =VLOOKUP(A116,ORÇAMENTO!$A$10:$I$29,3) -> EXECUÇÃO E COMPACTAÇÃO DE BASE E OU SUB BASE PARA PAVIMENTAÇÃO EM CASCALHO - EXCLUSIVE SOLO, ESCAVAÇÃO, CARGA E TRANSPORTE. | E118: SINAPI | F118: =VLOOKUP(A116,ORÇAMENTO!$A$10:$I$29,4) -> 96388 | G118: UNIDADE: | H118: =VLOOKUP(A116,ORÇAMENTO!$A$10:$I$29,5) -> M3
B120: TIPO ITEM | C120: CODIGO ITEM | D120: DESCRIÇÃO ITEM | E120: UNIDADE ITEM | F120: COEFICIENTE | G120: PRECO UNITARIO | H120: CUSTO TOTAL
B121: COMPOSICAO | C121: 5684 | D121: ROLO COMPACTADOR VIBRATÓRIO DE UM CILINDRO AÇO LISO, POTÊNCIA 80 HP, PESO OPERACIONAL MÁXIMO 8,1 T, IMPACTO DINÂMICO 16,15 / 9,5 T, LARGURA DE TRABALHO 1,68 M - CHP DIURNO. AF_06/2014 | E121: CHP | F121: 0,0030000 | G121: 152,82 | H121: =ROUNDDOWN(F121*G121,2) -> 0.45
B122: COMPOSICAO | C122: 5685 | D122: ROLO COMPACTADOR VIBRATÓRIO DE UM CILINDRO AÇO LISO, POTÊNCIA 80 HP, PESO OPERACIONAL MÁXIMO 8,1 T, IMPACTO DINÂMICO 16,15 / 9,5 T, LARGURA DE TRABALHO 1,68 M - CHI DIURNO. AF_06/2014 | E122: CHI | F122: 0,0230000 | G122: 50,98 | H122: 1.17 | O122: 1.7214982 | Q122: =SUM(O122:O134) -> 25.8014982
B123: COMPOSICAO | C123: 5901 | D123: CAMINHÃO PIPA 10.000 L TRUCADO, PESO BRUTO TOTAL 23.000 KG, CARGA ÚTIL MÁXIMA 15.935 KG, DISTÂNCIA ENTRE EIXOS 4,8 M, POTÊNCIA 230 CV, INCLUSIVE TANQUE DE AÇO PARA TRANSPORTE DE ÁGUA - CHP DIURNO. AF_06/2014 | E123: CHP | F123: 0,0040000 | G123: 326,66 | H123: 1.3 | O123: 0.91
B124: COMPOSICAO | C124: 5903 | D124: CAMINHÃO PIPA 10.000 L TRUCADO, PESO BRUTO TOTAL 23.000 KG, CARGA ÚTIL MÁXIMA 15.935 KG, DISTÂNCIA ENTRE EIXOS 4,8 M, POTÊNCIA 230 CV, INCLUSIVE TANQUE DE AÇO PARA TRANSPORTE DE ÁGUA - CHI DIURNO. AF_06/2014 | E124: CHI | F124: 0,0220000 | G124: 54,39 | H124: 1.19 | O124: 0.04
B125: COMPOSICAO | C125: 5932 | D125: MOTONIVELADORA POTÊNCIA BÁSICA LÍQUIDA (PRIMEIRA MARCHA) 125 HP, PESO BRUTO 13032 KG, LARGURA DA LÂMINA DE 3,7 M - CHP DIURNO. AF_06/2014 | E125: CHP | F125: 0,0080000 | G125: 256,86 | H125: 2.05 | O125: 0.18
B126: COMPOSICAO | C126: 5934 | D126: MOTONIVELADORA POTÊNCIA BÁSICA LÍQUIDA (PRIMEIRA MARCHA) 125 HP, PESO BRUTO 13032 KG, LARGURA DA LÂMINA DE 3,7 M - CHI DIURNO. AF_06/2014 | E126: CHI | F126: 0,0190000 | G126: 83,44 | H126: 1.58 | O126: 1.51
B127: COMPOSICAO | C127: 88316 | D127: SERVENTE COM ENCARGOS COMPLEMENTARES | E127: H | F127: 0,0260000 | G127: 18,02 | H127: 0.46 | O127: 4.3
B128: COMPOSICAO | C128: 96463 | D128: ROLO COMPACTADOR DE PNEUS, ESTATICO, PRESSAO VARIAVEL, POTENCIA 110 HP, PESO SEM/COM LASTRO 10,8/27 T, LARGURA DE ROLAGEM 2,30 M - CHP DIURNO. AF_06/2017 | E128: CHP | F128: 0,0040000 | G128: 202,77 | H128: 0.81 | O128: 8
B129: COMPOSICAO | C129: 96464 | D129: ROLO COMPACTADOR DE PNEUS, ESTATICO, PRESSAO VARIAVEL, POTENCIA 110 HP, PESO SEM/COM LASTRO 10,8/27 T, LARGURA DE ROLAGEM 2,30 M - CHI DIURNO. AF_06/2017 | E129: CHI | F129: 0,0220000 | G129: 70,94 | H129: 1.56 | O129: 1.03
B130: PRODUÇÃO DA EQUIPE | E130: 1 | F130: CUSTO | H130: =SUM(H121:H129) -> 10.57 | O130: 0.97
B131: TOTAL | H131: =H130/E130 -> 10.57 | O131: 2.01
B132: BDI % | H132: =1+$M$1 -> 1.2115 | O132: 0.3
B133: TOTAL DO SERVIÇO - R$ | H133: =H131*H132 -> 12.805555 | O133: 1.17
O134: 3.66
A135: 10 | B135: CODEVASF | E135: COMPOSIÇÃO DE PREÇO UNITÁRIO | I135: =H150 -> 1.09 | J135: =H152 -> 1.320535
B136: OBRA: | C136: =$C$2 -> PAVIMENTAÇÃO ASFÁLTICA EM PMF - COMUNIDADE LAGOA DOURADA (TAIOBEIRAS-MG) | G136: DATA: | H136: =$H$2 -> SETEMBRO DE 2022
B137: SERVIÇO: | C137: =VLOOKUP(A135,ORÇAMENTO!$A$10:$I$29,3) -> IMPRIMAÇÃO COM ASFALTO DILUIDO CM-30 | E137: SINAPI | F137: =VLOOKUP(A135,ORÇAMENTO!$A$10:$I$29,4) -> 96401 | G137: UNIDADE: | H137: =VLOOKUP(A135,ORÇAMENTO!$A$10:$I$29,5) -> M2
B139: TIPO ITEM | C139: CODIGO ITEM | D139: DESCRIÇÃO ITEM | E139: UNIDADE ITEM | F139: COEFICIENTE | G139: PRECO UNITARIO | H139: CUSTO TOTAL
B140: COMPOSICAO | C140: 5839 | D140: VASSOURA MECÂNICA REBOCÁVEL COM ESCOVA CILÍNDRICA, LARGURA ÚTIL DE VARRIMENTO DE 2,44 M | E140: CHP | F140: 0,0020000 | G140: 11.36 | H140: =ROUNDDOWN(F140*G140,2) -> 0.02
B141: COMPOSICAO | C141: 5841 | D141: VASSOURA MECÂNICA REBOCÁVEL COM ESCOVA CILÍNDRICA, LARGURA ÚTIL DE VARRIMENTO DE 2,44 M | E141: CHI | F141: 0,0040000 | G141: 5.4 | H141: 0.02
B142: INSUMO | D142: ASFALTO DILUIDO DE PETROLEO CM-30 (FORNECIMENTO COM BDI DIFERENCIADO) | E142: KG | F142: 1,2000000 | H142: 0
B143: COMPOSICAO | C143: 83362 | D143: ESPARGIDOR DE ASFALTO PRESSURIZADO, TANQUE 6 M3 COM ISOLAÇÃO TÉRMICA, AQUECIDO COM 2 MAÇARICOS, COM BARRA ESPARGIDORA 3,60 M, MONTADO SOBRE CAMINHÃO TOCO, PBT 14.300 KG, POTÊNCIA 185 CV | E143: CHP | F143: 0,0010000 | G143: 272.29 | H143: 0.27
B144: COMPOSICAO | C144: 88316 | D144: SERVENTE COM ENCARGOS COMPLEMENTARES | E144: H | F144: 0,0060000 | G144: 18.02 | H144: 0.1
B145: COMPOSICAO | C145: 89035 | D145: TRATOR DE PNEUS, POTÊNCIA 85 CV, TRAÇÃO 4X4, PESO COM LASTRO DE 4.675 KG | E145: CHP | F145: 0,0020000 | G145: 136.1 | H145: 0.27
B146: COMPOSICAO | C146: 89036 | D146: TRATOR DE PNEUS, POTÊNCIA 85 CV, TRAÇÃO 4X4, PESO COM LASTRO DE 4.675 KG | E146: CHI | F146: 0,0040000 | G146: 40.13 | H146: 0.16
B147: COMPOSICAO | C147: 91486 | D147: ESPARGIDOR DE ASFALTO PRESSURIZADO, TANQUE 6 M3 COM ISOLAÇÃO TÉRMICA, AQUECIDO COM 2 MAÇARICOS, COM BARRA ESPARGIDORA 3,60 M, MONTADO SOBRE CAMINHÃO TOCO, PBT 14.300 KG, POTÊNCIA 185 CV | E147: CHI | F147: 0,0050000 | G147: 51.39 | H147: 0.25
H148: 0
B149: PRODUÇÃO DA EQUIPE | E149: 1 | F149: CUSTO | H149: =SUM(H140:H148) -> 1.09
B150: TOTAL | H150: =H149/E149 -> 1.09
B151: BDI % | H151: =1+$M$1 -> 1.2115
B152: TOTAL DO SERVIÇO - R$ | H152: =H150*H151 -> 1.320535
A154: 11 | B154: CODEVASF | E154: COMPOSIÇÃO DE PREÇO UNITÁRIO | I154: =H169 -> 0.87 | J154: =H171 -> 1.054005
B155: OBRA: | C155: =$C$2 -> PAVIMENTAÇÃO ASFÁLTICA EM PMF - COMUNIDADE LAGOA DOURADA (TAIOBEIRAS-MG) | G155: DATA: | H155: =$H$2 -> SETEMBRO DE 2022
B156: SERVIÇO: | C156: =VLOOKUP(A154,ORÇAMENTO!$A$10:$I$29,3) -> PINTURA DE LIGAÇÃO COM EMULSÃO ASFÁLTICA RR-2C | E156: SINAPI | F156: =VLOOKUP(A154,ORÇAMENTO!$A$10:$I$29,4) -> 96402 | G156: UNIDADE: | H156: =VLOOKUP(A154,ORÇAMENTO!$A$10:$I$29,5) -> M2
B158: TIPO ITEM | C158: CODIGO ITEM | D158: DESCRIÇÃO ITEM | E158: UNIDADE ITEM | F158: COEFICIENTE | G158: PRECO UNITARIO | H158: CUSTO TOTAL
B159: COMPOSICAO | C159: 5839 | D159: VASSOURA MECÂNICA REBOCÁVEL COM ESCOVA CILÍNDRICA, LARGURA ÚTIL DE VARRIMENTO DE 2,44 M - CHP DIURNO. AF_06/2014 | E159: CHP | F159: 0,0020000 | G159: 11,36 | H159: =ROUNDDOWN(F159*G159,2) -> 0.02
B160: COMPOSICAO | C160: 5841 | D160: VASSOURA MECÂNICA REBOCÁVEL COM ESCOVA CILÍNDRICA, LARGURA ÚTIL DE VARRIMENTO DE 2,44 M - CHI DIURNO. AF_06/2014 | E160: CHI | F160: 0,0040000 | G160: 5,40 | H160: 0.02
B161: INSUMO | D161: EMULSAO ASFALTICA CATIONICA RR-2C PARA USO EM PAVIMENTACAO ASFALTICA (COLETADO CAIXA NA ANP ACRESCIDO DE ICMS) | E161: KG | F161: 0,4500000 | H161: 0
B162: COMPOSICAO | C162: 83362 | D162: ESPARGIDOR DE ASFALTO PRESSURIZADO, TANQUE 6 M3 COM ISOLAÇÃO TÉRMICA, AQUECIDO COM 2 MAÇARICOS, COM BARRA ESPARGIDORA 3,60 M, MONTADO SOBRE CAMINHÃO TOCO, PBT 14.300 KG, POTÊNCIA 185 CV - CHP DIURNO. AF_08/2015 | E162: CHP | F162: 0,0004000 | G162: 272,29 | H162: 0.1
B163: COMPOSICAO | C163: 88316 | D163: SERVENTE COM ENCARGOS COMPLEMENTARES | E163: H | F163: 0,0055000 | G163: 18,02 | H163: 0.09
B164: COMPOSICAO | C164: 89035 | D164: TRATOR DE PNEUS, POTÊNCIA 85 CV, TRAÇÃO 4X4, PESO COM LASTRO DE 4.675 KG - CHP DIURNO. AF_06/2014 | E164: CHP | F164: 0,0017000 | G164: 136,10 | H164: 0.23
B165: COMPOSICAO | C165: 89036 | D165: TRATOR DE PNEUS, POTÊNCIA 85 CV, TRAÇÃO 4X4, PESO COM LASTRO DE 4.675 KG - CHI DIURNO. AF_06/2014 | E165: CHI | F165: 0,0038000 | G165: 40,13 | H165: 0.15
B166: COMPOSICAO | C166: 91486 | D166: ESPARGIDOR DE ASFALTO PRESSURIZADO, TANQUE 6 M3 COM ISOLAÇÃO TÉRMICA, AQUECIDO COM 2 MAÇARICOS, COM BARRA ESPARGIDORA 3,60 M, MONTADO SOBRE CAMINHÃO TOCO, PBT 14.300 KG, POTÊNCIA 185 CV - CHI DIURNO. AF_08/2015 | E166: CHI | F166: 0,0051000 | G166: 51,39 | H166: 0.26
H167: 0
B168: PRODUÇÃO DA EQUIPE | E168: 1 | F168: CUSTO | H168: =SUM(H159:H167) -> 0.87
B169: TOTAL | H169: =H168/E168 -> 0.87
B170: BDI % | H170: =1+$M$1 -> 1.2115
B171: TOTAL DO SERVIÇO - R$ | H171: =H169*H170 -> 1.054005
A173: 12 | B173: CODEVASF | E173: COMPOSIÇÃO DE PREÇO UNITÁRIO | I173: =H191 -> 390.57 | J173: =H193 -> 473.175555
B174: OBRA: | C174: =$C$2 -> PAVIMENTAÇÃO ASFÁLTICA EM PMF - COMUNIDADE LAGOA DOURADA (TAIOBEIRAS-MG) | G174: DATA: | H174: =$H$2 -> SETEMBRO DE 2022
B175: SERVIÇO: | C175: =VLOOKUP(A173,ORÇAMENTO!$A$10:$I$29,3) -> EXECUÇÃO DE PAVIMENTO COM APLICAÇÃO DE PRÉ-MISTURADO A FRIO, CAMADA DE ROLAMENTO - EXCLUSIVE TRANSPORTE | E175: SINAPI | F175: =VLOOKUP(A173,ORÇAMENTO!$A$10:$I$29,4) -> 100624 | G175: UNIDADE: | H175: =VLOOKUP(A173,ORÇAMENTO!$A$10:$I$29,5) -> M3
B177: TIPO ITEM | C177: CODIGO ITEM | D177: DESCRIÇÃO ITEM | E177: UNIDADE ITEM | F177: COEFICIENTE | G177: PRECO UNITARIO | H177: CUSTO TOTAL
B178: COMPOSICAO | C178: 5835 | D178: VIBROACABADORA DE ASFALTO SOBRE ESTEIRAS, LARGURA DE PAVIMENTAÇÃO 1,90 M A 5,30 M, POTÊNCIA 105 HP CAPACIDADE 450 T/H - CHP DIURNO. AF_11/2014 | E178: CHP | F178: 0,0280000 | G178: 396,31 | H178: =ROUNDDOWN(F178*G178,2) -> 11.09
B179: COMPOSICAO | C179: 5837 | D179: VIBROACABADORA DE ASFALTO SOBRE ESTEIRAS, LARGURA DE PAVIMENTAÇÃO 1,90 M A 5,30 M, POTÊNCIA 105 HP CAPACIDADE 450 T/H - CHI DIURNO. AF_11/2014 | E179: CHI | F179: 0,0580000 | G179: 137,39 | H179: 7.96
B180: COMPOSICAO | C180: 88314 | D180: RASTELEIRO COM ENCARGOS COMPLEMENTARES | E180: H | F180: 0,6860000 | G180: 18,62 | H180: 12.77
B181: COMPOSICAO | C181: 91386 | D181: CAMINHÃO BASCULANTE 10 M3, TRUCADO CABINE SIMPLES, PESO BRUTO TOTAL 23.000 KG, CARGA ÚTIL MÁXIMA 15.935 KG, DISTÂNCIA ENTRE EIXOS 4,80 M, POTÊNCIA 230 CV INCLUSIVE CAÇAMBA METÁLICA - CHP DIURNO. AF_06/2014 | E181: CHP | F181: 0,0280000 | G181: 266,55 | H181: 7.46
B182: COMPOSICAO | C182: 95631 | D182: ROLO COMPACTADOR VIBRATORIO TANDEM, ACO LISO, POTENCIA 125 HP, PESO SEM/COM LASTRO 10,20/11,65 T, LARGURA DE TRABALHO 1,73 M - CHP DIURNO. AF_11/2016 | E182: CHP | F182: 0,0460000 | G182: 222,91 | H182: 10.25
B183: COMPOSICAO | C183: 95632 | D183: ROLO COMPACTADOR VIBRATORIO TANDEM, ACO LISO, POTENCIA 125 HP, PESO SEM/COM LASTRO 10,20/11,65 T, LARGURA DE TRABALHO 1,73 M - CHI DIURNO. AF_11/2016 | E183: CHI | F183: 0,0400000 | G183: 66,00 | H183: 2.64
B184: COMPOSICAO | C184: 96155 | D184: TRATOR DE PNEUS COM POTÊNCIA DE 85 CV, TRAÇÃO 4X4, COM VASSOURA MECÂNICA ACOPLADA - CHI DIURNO. AF_02/2017 | E184: CHI | F184: 0,0520000 | G184: 45,30 | H184: 2.35
B185: COMPOSICAO | C185: 96157 | D185: TRATOR DE PNEUS COM POTÊNCIA DE 85 CV, TRAÇÃO 4X4, COM VASSOURA MECÂNICA ACOPLADA - CHP DIURNO. AF_03/2017 | E185: CHP | F185: 0,0340000 | G185: 146,23 | H185: 4.97
B186: COMPOSICAO | C186: 96463 | D186: ROLO COMPACTADOR DE PNEUS, ESTATICO, PRESSAO VARIAVEL, POTENCIA 110 HP, PESO SEM/COM LASTRO 10,8/27 T, LARGURA DE ROLAGEM 2,30 M - CHP DIURNO. AF_06/2017 | E186: CHP | F186: 0,0260000 | G186: 202,77 | H186: 5.27
B187: COMPOSICAO | C187: 96464 | D187: ROLO COMPACTADOR DE PNEUS, ESTATICO, PRESSAO VARIAVEL, POTENCIA 110 HP, PESO SEM/COM LASTRO 10,8/27 T, LARGURA DE ROLAGEM 2,30 M - CHI DIURNO. AF_06/2017 | E187: CHI | F187: 0,0600000 | G187: 70,94 | H187: 4.25
B188: COMPOSICAO | C188: 101027 | D188: USINAGEM DE PRÉ MISTURADO A FRIO, PARA CAMADA DE ROLAMENTO, PADRÃO DNIT FAIXA C. AF_03/2020_P | E188: T | F188: 2,4480000 | G188: =H215 -> 131.36 | H188: 321.56
H189: 0
B190: PRODUÇÃO DA EQUIPE | E190: 1 | F190: CUSTO | H190: =SUM(H178:H189) -> 390.57
B191: TOTAL | H191: =H190/E190 -> 390.57
B192: BDI % | H192: =1+$M$1 -> 1.2115
B193: TOTAL DO SERVIÇO - R$ | H193: =H191*H192 -> 473.175555
B195: CODEVASF | E195: COMPOSIÇÃO DE PREÇO UNITÁRIO
B196: OBRA: | C196: =$C$2 -> PAVIMENTAÇÃO ASFÁLTICA EM PMF - COMUNIDADE LAGOA DOURADA (TAIOBEIRAS-MG) | G196: DATA: | H196: =$H$2 -> SETEMBRO DE 2022
B197: SERVIÇO: | C197: =D188 -> USINAGEM DE PRÉ MISTURADO A FRIO, PARA CAMADA DE ROLAMENTO, PADRÃO DNIT FAIXA C. AF_03/2020_P | E197: SINAPI | F197: =C188 -> 101027 | G197: UNIDADE: | H197: =E188 -> T
B199: TIPO ITEM | C199: CODIGO ITEM | D199: DESCRIÇÃO ITEM | E199: UNIDADE ITEM | F199: COEFICIENTE | G199: PRECO UNITARIO | H199: CUSTO TOTAL
B200: INSUMO | C200: 370 | D200: AREIA MEDIA - POSTO JAZIDA/FORNECEDOR (RETIRADO NA JAZIDA, SEM TRANSPORTE) | E200: M3 | F200: 0,1600000 | G200: 100,00 | H200: =ROUNDDOWN(F200*G200,2) -> 16
B201: INSUMO | C201: 1106 | D201: CAL HIDRATADA CH-I PARA ARGAMASSAS | E201: KG | F201: 36,9275000 | G201: 0,97 | H201: 35.81
B202: INSUMO | C202: 4720 | D202: PEDRA BRITADA N. 0, OU PEDRISCO (4,8 A 9,5 MM) POSTO PEDREIRA/FORNECEDOR, SEM FRETE | E202: M3 | F202: 0,2410000 | G202: 121,25 | H202: 29.22
B203: INSUMO | C203: 4721 | D203: PEDRA BRITADA N. 1 (9,5 a 19 MM) POSTO PEDREIRA/FORNECEDOR, SEM FRETE | E203: M3 | F203: 0,1897000 | G203: 105,02 | H203: 19.92
B204: COMPOSICAO | C204: 5940 | D204: PÁ CARREGADEIRA SOBRE RODAS, POTÊNCIA LÍQUIDA 128 HP, CAPACIDADE DA CAÇAMBA 1,7 A 2,8 M3, PESO OPERACIONAL 11632 KG - CHP DIURNO. AF_06/2014 | E204: CHP | F204: 0,0048000 | G204: 211,10 | H204: 1.01
B205: COMPOSICAO | C205: 5942 | D205: PÁ CARREGADEIRA SOBRE RODAS, POTÊNCIA LÍQUIDA 128 HP, CAPACIDADE DA CAÇAMBA 1,7 A 2,8 M3, PESO OPERACIONAL 11632 KG - CHI DIURNO. AF_06/2014 | E205: CHI | F205: 0,0253000 | G205: 77,00 | H205: 1.94
B206: COMPOSICAO | C206: 7030 | D206: TANQUE DE ASFALTO ESTACIONÁRIO COM SERPENTINA, CAPACIDADE 30.000 L - CHP DIURNO. AF_06/2014 | E206: CHP | F206: 0,0603000 | G206: 317,95 | H206: 19.17
B207: INSUMO | C207: 41904 | D207: EMULSAO ASFALTICA CATIONICA RL-1C PARA USO EM PAVIMENTACAO ASFALTICA (COLETADO CAIXA NA ANP ACRESCIDO DE ICMS) | E207: T | F207: 0,0769000 | H207: 0
B208: COMPOSICAO | C208: 88316 | D208: SERVENTE COM ENCARGOS COMPLEMENTARES | E208: H | F208: 0,0603000 | G208: 18,02 | H208: 1.08
B209: COMPOSICAO | C209: 90776 | D209: ENCARREGADO GERAL COM ENCARGOS COMPLEMENTARES | E209: H | F209: 0,0301000 | G209: 39,80 | H209: 1.19
B210: COMPOSICAO | C210: 93421 | D210: GRUPO GERADOR REBOCÁVEL, POTÊNCIA 66 KVA, MOTOR A DIESEL - CHP DIURNO. AF_03/2016 | E210: CHP | F210: 0,0234000 | G210: 85,03 | H210: 1.98
B211: COMPOSICAO | C211: 93422 | D211: GRUPO GERADOR REBOCÁVEL, POTÊNCIA 66 KVA, MOTOR A DIESEL - CHI DIURNO. AF_03/2016 | E211: CHI | F211: 0,0068000 | G211: 2,59 | H211: 0.01
B212: COMPOSICAO | C212: 93439 | D212: USINA DE ASFALTO À FRIO, CAPACIDADE DE 40 A 60 TON/HORA, ELÉTRICA POTÊNCIA 30 CV - CHP DIURNO. AF_03/2016 | E212: CHP | F212: 0,0234000 | G212: 142,85 | H212: 3.34
B213: COMPOSICAO | C213: 93440 | D213: USINA DE ASFALTO À FRIO, CAPACIDADE DE 40 A 60 TON/HORA, ELÉTRICA POTÊNCIA 30 CV - CHI DIURNO. AF_03/2016 | E213: CHI | F213: 0,0068000 | G213: 101,78 | H213: 0.69
H214: 0
B215: PRODUÇÃO DA EQUIPE | E215: 1 | F215: CUSTO | H215: =SUM(H200:H214) -> 131.36
B216: TOTAL | H216: =H215/E215 -> 131.36
B217: BDI % | H217: =1+$M$1 -> 1.2115
B218: TOTAL DO SERVIÇO - R$ | H218: =H216*H217 -> 159.14264
A220: 13 | B220: CODEVASF | E220: COMPOSIÇÃO DE PREÇO UNITÁRIO | I220: =H229 -> 1.09 | J220: =H231 -> 1.320535
B221: OBRA: | C221: =$C$2 -> PAVIMENTAÇÃO ASFÁLTICA EM PMF - COMUNIDADE LAGOA DOURADA (TAIOBEIRAS-MG) | G221: DATA: | H221: =$H$2 -> SETEMBRO DE 2022
B222: SERVIÇO: | C222: =VLOOKUP(A220,ORÇAMENTO!$A$10:$I$29,3) -> TRANSPORTE COM CAMINHÃO BASCULANTE, EM VIA URBANA EM REVESTIMENTO PRIMÁRIO | E222: SINAPI | F222: =VLOOKUP(A220,ORÇAMENTO!$A$10:$I$29,4) -> 95426 | G222: UNIDADE: | H222: =VLOOKUP(A220,ORÇAMENTO!$A$10:$I$29,5) -> M3XKM
B224: TIPO ITEM | C224: CODIGO ITEM | D224: DESCRIÇÃO ITEM | E224: UNIDADE ITEM | F224: COEFICIENTE | G224: PRECO UNITARIO | H224: CUSTO TOTAL
B225: COMPOSICAO | C225: 89883 | D225: CAMINHÃO BASCULANTE 18 M3, COM CAVALO MECÂNICO DE CAPACIDADE MÁXIMA DE TRAÇÃO COMBINADO DE 45000 KG, POTÊNCIA 330 CV, INCLUSIVE SEMIREBOQUE COM CAÇAMBA METÁLICA | E225: CHP | F225: 0.0025 | G225: 378,01 | H225: =ROUNDDOWN(F225*G225,2) -> 0.94
B226: COMPOSICAO | C226: 89884 | D226: CAMINHÃO BASCULANTE 18 M3, COM CAVALO MECÂNICO DE CAPACIDADE MÁXIMA DE TRAÇÃO COMBINADO DE 45000 KG, POTÊNCIA 330 CV, INCLUSIVE SEMIREBOQUE COM CAÇAMBA METÁLICA | E226: CHI | F226: 0,0022000 | G226: 70,93 | H226: 0.15
H227: 0
... 90 more rows

Sheet BDI SERV
B1: DETALHAMENTO DO BDI - SERVIÇOS
B4: Item | C4: Descrição dos Serviços | D4: % | E4: %
D5: PV | E5: CD
B7: 1 | C7: ADMINISTRAÇÃO CENTRAL | E7: 4
B8: 1.1 | C8: ESCRITÓRIO CENTRAL
B9: 1.2 | C9: VIAGENS
B10: 1.3 | C10: OUTROS
B12: 2 | C12: IMPOSTOS E TAXAS | D12: =SUM(D13:D16) -> 6.65 | E12: =SUM(E13:E16) -> 8.31
B13: 2.1 | C13: ISS (*) | D13: 3 | E13: =ROUND(D13*1.2515,2) -> 3.75
B14: 2.2 | C14: PIS | D14: 0.65 | E14: 0.81
B15: 2.3 | C15: Cofins | D15: 3 | E15: 3.75
B16: 2.4 | C16: CONTRIBUIÇÃO PREVIDENCIÁRIA SOBRE A RENDA BRUTA | D16: 0 | E16: 0
B18: 3 | C18: TAXA DE RISCO | E18: =SUM(E19:E22) -> 0.82
B19: 3.1 | C19: SEGURO | E19: 0.16
B20: 3.2 | C20: RISCO | E20: 0.5
B21: 3.3 | C21: GARANTIA | E21: 0.16
B23: 4 | C23: DESPESAS FINANCEIRAS | E23: 1.02
B25: 5 | C25: LUCRO | E25: 6.8
C27: BDI - CALCULADO | E27: =ROUND((((1+(E7+E18)/100)*(1+E23/100)*(1+E25/100)/(1-D12/100)-1)*100),2) -> 21.15
A29: BDI = ((1+((AC+S+R+G)/100))x(1+DF/100)x(1+L/100)/(1-I/100)-1)*100
B31: BDI (CALCULADO): | D31: =ROUND((((1+((E7+E18)/100))*(1+E23/100)*(1+E25/100))/(1-D12/100)-1)*100,2) -> 21.15 | E31: %
A33: (*) ISS CONFORME LEI COMPLEMENTAR Nº 009 DE 28 DE DEZEMBRO DE 2009, DE ACORDO COM DECLARAÇÃO EM ANEXO
A37: BDI EM CONFORMIDADE COM OS ACÓRDÃOS Nº 2369/2011 e ACÓRDÃO Nº 2.622/2013 - TCU - PLENÁRIO

Sheet BDI FORN
B1: DETALHAMENTO DO BDI - FORNECIMENTO (MATERIAL ASFÁLTICO)
B4: Item | C4: Descrição dos Serviços | D4: % | E4: %
D5: PV | E5: CD
B7: 1 | C7: ADMINISTRAÇÃO CENTRAL | E7: 3.72
B8: 1.1 | C8: ESCRITÓRIO CENTRAL
B9: 1.2 | C9: VIAGENS
B10: 1.3 | C10: OUTROS
B12: 2 | C12: IMPOSTOS E TAXAS | D12: =SUM(D13:D16) -> 3.65 | E12: =SUM(E13:E16) -> 4.56
B13: 2.1 | C13: ISS (*) | E13: =ROUND(D13*1.2515,2) -> 0
B14: 2.2 | C14: PIS | D14: 0.65 | E14: 0.81
B15: 2.3 | C15: Cofins | D15: 3 | E15: 3.75
B16: 2.4 | C16: CONTRIBUIÇÃO PREVIDENCIÁRIA SOBRE A RENDA BRUTA | D16: 0 | E16: 0
B18: 3 | C18: TAXA DE RISCO | E18: =SUM(E19:E22) -> 0.92
B19: 3.1 | C19: SEGURO | E19: 0.16
B20: 3.2 | C20: RISCO | E20: 0.6
B21: 3.3 | C21: GARANTIA | E21: 0.16
B23: 4 | C23: DESPESAS FINANCEIRAS | E23: 0.85
B25: 5 | C25: LUCRO | E25: 5
C27: BDI - CALCULADO | E27: =ROUND((((1+(E7+E18)/100)*(1+E23/100)*(1+E25/100)/(1-D12/100)-1)*100),2) -> 15
A29: BDI = ((1+((AC+S+R+G)/100))x(1+DF/100)x(1+L/100)/(1-I/100)-1)*100
B31: BDI (CALCULADO): | D31: =ROUND((((1+((E7+E18)/100))*(1+E23/100)*(1+E25/100))/(1-D12/100)-1)*100,2) -> 15 | E31: %
A37: BDI EM CONFORMIDADE COM OS ACÓRDÃOS Nº 2369/2011 e ACÓRDÃO Nº 2.622/2013 - TCU - PLENÁRIO

Sheet CRONOGRAMA
B1: CRONOGRAMA FÍSICO-FINANCEIRO
B2: OBRA: | C2: =ORÇAMENTO!C5 -> PAVIMENTAÇÃO ASFÁLTICA EM PMF - COMUNIDADE LAGOA DOURADA (TAIOBEIRAS-MG) | F2: VALOR: | G2: =ORÇAMENTO!I37 -> 294975.77
F3: PRAZO: | G3: 90 DIAS
B5: ITEM | C5: ETAPAS/DESCRIÇAO | D5: FISICO/ FINANCEIRO | E5: TOTAL ETAPAS | F5: MÊS 1 | G5: MÊS 2 | H5: MÊS 3 | I5: TOTAL
A6: A | B6: =VLOOKUP(A6,ORÇAMENTO!$A$9:$I$37,2) -> 1 | C6: =VLOOKUP(A6,ORÇAMENTO!$A$9:$I$37,3) -> SERVIÇOS PRELIMINARES | D6: FISICO | E6: =ROUND(E7/$G$2,4) -> 0.1093 | F6: 0.35 | G6: 0.3 | H6: 0.35 | I6: =SUM(F6:H6) -> 1
D7: FINANCEIRO | E7: =ORÇAMENTO!I9 -> 32228.73 | F7: =ROUND($E$7*F6,2) -> 11280.06 | G7: 9668.62 | H7: 11280.06 | I7: =SUM(F7:H7)-0.01 -> 32228.73
A8: B | B8: =VLOOKUP(A8,ORÇAMENTO!$A$9:$I$37,2) -> 2 | C8: =VLOOKUP(A8,ORÇAMENTO!$A$9:$I$37,3) -> PAVIMENTAÇÃO | D8: FISICO | E8: =ROUND(E9/$G$2,4) -> 0.229 | F8: 0.3 | G8: 0.5 | H8: 0.2 | I8: =SUM(F8:H8) -> 1
D9: FINANCEIRO | E9: =ORÇAMENTO!I15 -> 67550.3 | F9: =ROUND($E$9*F8,2) -> 20265.09 | G9: 33775.15 | H9: 13510.06 | I9: 67550.3
A10: C | B10: =VLOOKUP(A10,ORÇAMENTO!$A$9:$I$37,2) -> 3 | C10: =VLOOKUP(A10,ORÇAMENTO!$A$9:$I$37,3) -> TRANSPORTE DE MATERIAIS | D10: FISICO | E10: =ROUND(E11/$G$2,4) -> 0.0668 | F10: 0.5 | G10: 0.3 | H10: 0.2 | I10: 1
D11: FINANCEIRO | E11: =ORÇAMENTO!I24 -> 19711.11 | F11: =ROUND($E$11*F10,2) -> 9855.56 | G11: =ROUND($E$11*G10,2) -> 5913.33 | H11: 3942.22 | I11: 19711.11
A12: E | B12: =VLOOKUP(A12,ORÇAMENTO!$A$9:$I$37,2) -> 4 | C12: =VLOOKUP(A12,ORÇAMENTO!$A$9:$I$37,3) -> OBRAS COMPLEMENTARES | D12: FISICO | E12: =ROUND(E13/$G$2,4) -> 0.2329 | G12: 0.2 | H12: 0.8 | I12: 1
D13: FINANCEIRO | E13: =ORÇAMENTO!I28 -> 68706.59 | F13: =ROUND($E$13*F12,2) -> 0 | G13: 13741.32 | H13: 54965.27 | I13: 68706.59
A14: F | B14: =VLOOKUP(A14,ORÇAMENTO!$A$9:$I$37,2) -> 5 | C14: =VLOOKUP(A14,ORÇAMENTO!$A$9:$I$37,3) -> TRANSPORTE DE MATERIAL ASFÁLTICO (BDI DIFERENCIADO) | D14: FISICO | E14: =ROUND(E15/$G$2,4) -> 0.0342 | G14: 0.7 | H14: 0.3 | I14: 1
D15: FINANCEIRO | E15: =ORÇAMENTO!I30 -> 10098.15 | F15: =ROUND($E$15*F14,2) -> 0 | G15: =ROUND($E$15*G14,2) -> 7068.71 | H15: =ROUND($E$15*H14,2) -> 3029.45 | I15: 10098.16
A16: G | B16: =VLOOKUP(A16,ORÇAMENTO!$A$9:$I$37,2) -> 6 | C16: =VLOOKUP(A16,ORÇAMENTO!$A$9:$I$37,3) -> FORNECIMENTOS - MATERIAL ASFÁLTICO (BDI DIFERENCIADO) | D16: FISICO | E16: =ROUND(E17/$G$2,4) -> 0.3278 | G16: 0.7 | H16: 0.3 | I16: =SUM(F16:H16) -> 1
D17: FINANCEIRO | E17: =ORÇAMENTO!I33 -> 96680.89 | F17: =ROUND($E$13*F16,2) -> 0 | G17: =ROUND($E$17*G16,2) -> 67676.62 | H17: =ROUND($E$17*H16,2) -> 29004.27 | I17: 96680.89
B18: TOTAL | D18: FISICO | E18: =SUM(F18:H18) -> 1 | F18: =F19/E19 -> 0.1403529178 | G18: =G19/E19 -> 0.4673052977 | H18: =H19/E19 -> 0.3923417845 | I18: 1
D19: FINANCEIRO | E19: =E11+E9+E7+E13+E17+E15 -> 294975.77 | F19: =F11+F9+F7+F13+F17+F15 -> 41400.71 | G19: =G11+G9+G7+G13+G17+G15-0.01 -> 137843.74 | H19: =H11+H9+H7+H13+H17+H15-0.01 -> 115731.32 | I19: =SUM(F19:H19) -> 294975.77
B21: OBSERVAÇÕES:
